bitfinex-derivatives/quotes_ETHF0:USTF0_20220103
["timestamp","ask_amount","ask_price","bid_price","bid_amount"]
[1641173127739,3.78059757,3796.8,3796.0,2.00479]
[1641173128339,5.28059757,3796.8,3796.0,2.00479]
[1641173128540,3.78059757,3796.8,3796.0,2.00479]
[1641173129642,11.31,3796.7,3796.0,2.00479]
[1641173131242,1.5,3796.2,3795.4,1.31631773]
[1641173131444,1.5,3796.2,3795.2,20.2906]
[1641173131646,1.5,3795.9,3794.9,22.0538]
[1641173131844,11.31,3795.8,3794.9,22.0538]
[1641173132043,0.128157,3795.7,3794.9,22.0538]
[1641173132844,0.128157,3795.7,3795.0,2.00479]
[1641173133445,13.61820711,3795.6,3795.0,2.00479]
[1641173133845,13.61820711,3795.6,3794.2,23.7597365]
[1641173134047,1.5,3795.3,3794.2,22.44301319]
[1641173134447,1.5,3795.3,3794.4,1.78971319]
[1641173134748,2.00479,3794.5,3794.4,1.78971319]
[1641173134947,3.44439179,3794.5,3794.4,1.78971319]
[1641173135446,3.21440079,3794.5,3794.4,1.78971319]
[1641173135846,3.44439179,3794.5,3794.2,0.0558]
[1641173136046,3.21440079,3794.5,3794.2,0.0558]
[1641173136948,0.229991,3794.4,3794.2,0.0558]
[1641173137351,0.229991,3794.4,3793.8,4.25297679]
[1641173137548,0.229991,3794.4,3793.8,4.30877679]
[1641173139050,0.229991,3794.4,3793.8,3.96612459]
[1641173139450,3.21440079,3794.5,3794.1,5.27132851]
[1641173141756,1.5,3794.2,3793.8,0.3426522]
[1641173141956,1.5,3794.0,3793.8,0.3426522]
[1641173142154,0.358148,3793.9,3793.6,5.0]
[1641173142757,2.00479,3793.7,3793.6,5.0]
[1641173142957,2.234781,3793.7,3793.6,5.0]
[1641173143460,3.734781,3793.7,3793.2,0.24106256]
[1641173143659,1.5,3793.4,3793.2,0.24106256]
[1641173143860,0.229991,3793.3,3792.6,2.00479]
[1641173144259,11.539991,3793.3,3792.6,2.00479]
[1641173144459,0.229991,3793.3,3792.5,0.24106256]
[1641173144864,2.00479,3792.9,3792.2,4.24207211]
[1641173145059,2.132947,3792.9,3792.2,4.29787211]
[1641173145260,2.00479,3792.9,3792.2,4.29787211]
[1641173145460,2.00479,3792.9,3792.2,2.06059]
[1641173146560,2.00479,3792.9,3792.2,2.00479]
[1641173146961,0.128157,3792.8,3792.2,2.00479]
[1641173147160,0.128157,3792.8,3792.2,2.06059]
[1641173147362,0.128157,3792.8,3792.2,2.00479]
[1641173147763,0.78845097,3792.8,3792.2,2.00479]
[1641173148360,0.66029397,3792.8,3792.2,2.00479]
[1641173149261,0.66029397,3792.8,3792.3,0.0558]
[1641173149663,0.78845097,3792.8,3792.3,0.0558]
[1641173151067,0.66029397,3792.8,3792.3,0.0558]
[1641173154070,2.00479,3792.9,3792.4,1.5]
[1641173154270,2.00479,3793.7,3792.5,0.122356]
[1641173154470,2.00479,3793.7,3792.9,1.85755333]
[1641173154672,2.00479,3793.7,3792.9,2.46195333]
[1641173155076,2.00479,3793.7,3793.1,2.00479]
[1641173155373,2.00479,3793.7,3793.2,0.0558]
[1641173155873,42.6011,3794.8,3793.2,1.49522268]
[1641173156072,42.6011,3794.8,3793.3,1.5]
[1641173156273,21.8647,3794.9,3793.6,3.13572414]
[1641173156473,1.31706668,3795.4,3793.6,3.13572414]
[1641173157074,2.00479,3795.2,3794.4,2.00479]
[1641173157274,2.00479,3795.2,3794.5,0.0558]
[1641173157777,2.132947,3795.2,3794.5,0.0558]
[1641173159575,2.00479,3795.2,3794.5,0.0558]
[1641173159975,0.67191058,3795.3,3794.5,0.0558]
[1641173160577,0.80006758,3795.3,3794.5,0.0558]
[1641173160978,0.80006758,3795.3,3795.2,2.00479]
[1641173161179,1.03005858,3795.3,3795.2,2.00479]
[1641173161677,0.67191058,3795.3,3795.2,2.00479]
[1641173161880,0.67191058,3795.3,3795.2,2.62219]
[1641173162783,1.03005858,3795.3,3795.2,2.62219]
[1641173162979,0.80006758,3795.3,3795.2,2.62219]
[1641173163178,0.67191058,3795.3,3795.2,2.62219]
[1641173163378,0.67191058,3795.3,3795.2,0.82749179]
[1641173164980,0.67191058,3795.3,3795.2,0.6174]
[1641173166985,0.67191058,3795.3,3794.8,2.79534252]
[1641173168290,0.95291113,3795.9,3795.3,0.11852227]
[1641173168486,0.95291113,3795.9,3795.4,0.0558]
[1641173168784,0.95291113,3795.9,3795.0,0.5208]
[1641173168986,0.95291113,3795.9,3795.7,2.00479]
[1641173169186,1.18290213,3795.9,3795.7,2.00479]
[1641173170085,0.95291113,3795.9,3795.7,2.00479]
[1641173170487,0.229991,3795.8,3795.7,2.00479]
[1641173171287,0.95291113,3795.9,3795.7,2.00479]
[1641173171687,2.00479,3796.4,3795.7,2.00479]
[1641173171888,0.128157,3796.3,3795.7,2.00479]
[1641173172687,0.796983,3796.3,3795.7,2.00479]
[1641173173288,0.668826,3796.3,3795.7,2.00479]
[1641173175292,0.668826,3796.3,3795.7,2.93343725]
[1641173177795,0.668826,3796.3,3795.7,3.55553725]
[1641173178400,0.68725466,3796.8,3796.2,0.79025794]
[1641173178599,0.68725466,3796.8,3796.3,0.0558]
[1641173181315,0.68725466,3796.8,3796.3,2.06059]
[1641173181702,1.48858432,3796.8,3796.3,2.06059]
[1641173183307,0.80132966,3796.8,3796.3,2.06059]
[1641173184407,1.17121465,3798.4,3796.7,2.29015672]
[1641173184611,1.17121465,3798.5,3797.2,1.5]
[1641173184807,0.09276033,3798.2,3797.2,2.2900515]
[1641173185208,0.56197498,3798.5,3797.7,2.00479]
[1641173185408,0.56197498,3798.5,3797.8,0.0558]
[1641173185611,0.128157,3798.4,3797.8,0.0558]
[1641173186214,0.7522523,3798.3,3797.8,0.0558]
[1641173191527,0.7522523,3798.3,3798.0,0.78987617]
[1641173191721,0.69092433,3798.9,3798.2,1.31530662]
[1641173192020,2.00479,3799.0,3798.4,1.5]
[1641173192220,2.00479,3799.0,3798.6,0.78976385]
[1641173192420,2.00479,3799.0,3798.7,0.0558]
[1641173193124,1.18138228,3799.3,3798.7,0.0558]
[1641173194422,1.18138228,3799.3,3798.7,0.78972369]
[1641173195523,1.18138228,3799.3,3798.8,0.0558]
[1641173202633,1.18138228,3799.3,3798.7,0.78972369]
[1641173204037,1.95458228,3799.3,3798.7,0.78972369]
[1641173204435,1.95458228,3799.3,3798.6,2.00479]
[1641173205837,1.95458228,3799.3,3798.7,0.0558]
[1641173212544,1.95458228,3799.3,3798.9,0.78969629]
[1641173220856,1.95458228,3799.3,3799.0,5.26443783]
[1641173227166,0.229991,3799.2,3799.0,5.26443783]
[1641173227767,1.95458228,3799.3,3799.0,5.26443783]
[1641173228267,0.229991,3799.2,3799.0,5.26443783]
[1641173228768,1.95458228,3799.3,3799.0,5.26443783]
[1641173229569,0.229991,3799.2,3799.0,5.26443783]
[1641173229974,1.95458228,3799.3,3799.0,5.26443783]
[1641173230671,0.229991,3799.2,3799.0,5.26443783]
[1641173230870,1.95458228,3799.3,3799.0,5.26443783]
[1641173231475,2.00479,3799.5,3799.0,5.26443783]
[1641173233874,0.86801197,3799.1,3799.0,5.26443783]
[1641173234880,0.86801197,3799.2,3799.0,5.26443783]
[1641173236378,1.16465964,3799.5,3799.4,0.93931302]
[1641173236677,1.16465964,3799.5,3798.9,3.44224505]
[1641173237180,3.92701847,3799.8,3798.9,3.44224505]
[1641173239982,3.92701847,3799.8,3799.2,1.5]
[1641173240186,1.47040553,3800.1,3799.7,2.81479127]
[1641173240481,1.47040553,3800.0,3799.8,0.178156]
[1641173240681,1.47040553,3800.0,3799.8,1.678156]
[1641173241081,1.47040553,3800.0,3799.8,0.178156]
[1641173241683,2.23569653,3800.0,3799.7,1.31479127]
[1641173241885,0.765291,3800.0,3799.7,3.31958127]
[1641173242283,0.765291,3800.0,3799.7,2.00479]
[1641173242483,0.5353,3800.0,3799.7,2.06059]
[1641173242686,0.229991,3799.9,3799.7,2.00479]
[1641173243183,0.5353,3800.0,3799.7,2.00479]
[1641173243184,1.37637861,3800.0,3799.7,2.00479]
[1641173244986,0.229991,3799.9,3799.7,2.00479]
[1641173245187,0.229991,3799.9,3799.7,2.79431071]
[1641173245385,0.84107861,3800.0,3799.7,2.79431071]
[1641173248189,3.2810729,3800.6,3799.7,2.00479]
[1641173248888,3.47620615,3801.0,3800.3,1.31462015]
[1641173249087,3.47620615,3801.0,3800.4,0.0558]
[1641173249890,1.47141615,3801.0,3800.5,2.00479]
[1641173250290,0.128157,3801.1,3800.5,2.00479]
[1641173250891,1.5,3801.0,3800.5,2.00479]
[1641173251189,2.1166,3801.0,3800.5,2.00479]
[1641173252390,1.17806061,3800.9,3800.5,2.00479]
[1641173252591,0.70428138,3800.8,3800.5,2.00479]
[1641173252894,0.229991,3800.7,3800.5,2.00479]
[1641173255496,1.40805161,3800.7,3800.5,2.00479]
[1641173256597,0.56012273,3800.6,3800.5,2.00479]
[1641173258803,1.31082273,3800.6,3800.5,2.00479]
[1641173259902,1.31082273,3800.6,3800.0,0.89433708]
[1641173260101,1.5,3800.3,3800.0,0.89433708]
[1641173260302,1.5,3800.1,3800.0,0.89433708]
[1641173260802,1.5,3800.1,3799.8,1.07328116]
[1641173261201,0.229991,3800.0,3799.8,1.07328116]
[1641173262202,2.26152988,3800.0,3799.9,0.89433708]
[1641173263206,3.07460869,3800.0,3799.9,0.89433708]
[1641173263402,1.60319254,3800.0,3799.6,1.19239582]
[1641173263603,1.60319254,3800.0,3799.7,1.19239582]
[1641173264202,1.1793389,3799.8,3799.7,1.19239582]
[1641173265404,1.4093299,3799.8,3799.7,1.19239582]
[1641173265605,1.1793389,3799.8,3799.7,1.19239582]
[1641173266306,0.56012273,3799.9,3799.4,0.17894408]
[1641173266307,0.56012273,3799.9,3799.5,1.19239582]
[1641173267407,0.56012273,3799.9,3799.8,0.89528612]
[1641173267605,0.79011373,3799.9,3799.8,0.89528612]
[1641173268509,0.79011373,3799.9,3799.7,0.89528612]
[1641173268510,1.96945263,3799.9,3799.7,0.89528612]
[1641173268907,1.73946163,3799.9,3799.7,0.89528612]
[1641173269107,1.96945263,3799.9,3799.7,0.89528612]
[1641173269308,0.56012273,3799.8,3799.7,0.89528612]
[1641173269909,0.79011373,3799.8,3799.7,0.89528612]
[1641173270410,0.229991,3799.8,3799.7,0.89528612]
[1641173271012,0.56012273,3799.8,3799.7,0.89528612]
[1641173271210,0.79011373,3799.8,3799.7,0.89528612]
[1641173271611,0.56012273,3799.8,3799.7,0.89528612]
[1641173272213,1.73946163,3799.9,3799.7,0.89528612]
[1641173272412,1.73946163,3799.9,3799.7,1.52538612]
[1641173273413,1.1793389,3799.9,3799.7,0.6301]
[1641173273616,2.00479,3800.1,3799.8,1.3713399]
[1641173274916,2.00479,3800.1,3799.9,1.19239582]
[1641173275113,0.229991,3800.0,3799.9,1.19239582]
[1641173275513,2.00479,3800.1,3799.9,1.19239582]
[1641173275715,2.00479,3800.1,3799.8,1.3713399]
[1641173276117,1.1793389,3800.3,3799.8,1.3713399]
[1641173276715,1.1793389,3800.3,3800.0,0.89522662]
[1641173276915,0.229991,3800.2,3800.0,0.89522662]
[1641173277116,2.00479,3800.1,3800.0,0.89522662]
[1641173277318,2.00479,3800.1,3800.0,0.0558]
[1641173277716,2.234781,3800.1,3800.0,0.0558]
[1641173278117,2.79494696,3800.1,3800.0,0.23474408]
[1641173278517,2.56495596,3800.1,3800.0,0.23474408]
[1641173280221,2.79494696,3800.1,3800.0,0.23474408]
[1641173281721,2.56495596,3800.1,3800.0,0.23474408]
[1641173281922,2.79494696,3800.1,3800.0,0.23474408]
[1641173282121,0.79015696,3800.1,3800.0,0.23474408]
[1641173282322,0.56016596,3800.1,3800.0,0.23474408]
[1641173283224,2.56495596,3800.1,3800.0,0.23474408]
[1641173283425,2.00479,3800.1,3800.0,0.23474408]
[1641173284127,2.56495596,3800.1,3800.0,0.23474408]
[1641173284325,0.56016596,3800.1,3800.0,0.23474408]
[1641173285525,1.1793389,3800.3,3800.0,0.23474408]
[1641173285927,0.88482135,3800.1,3800.0,0.23474408]
[1641173287327,1.73950038,3800.4,3800.2,2.87752709]
[1641173287527,1.73950038,3800.4,3800.0,0.23474408]
[1641173287927,3.1841289,3800.5,3800.0,1.4271399]
[1641173288828,0.56015182,3800.4,3800.0,1.4271399]
[1641173289033,0.56015182,3800.4,3800.1,0.17894408]
[1641173289230,0.229991,3800.3,3800.1,0.17894408]
[1641173289428,1.628157,3800.2,3800.1,0.17894408]
[1641173289630,0.128157,3800.2,3799.7,2.00479]
[1641173289828,0.128157,3800.2,3799.9,1.19361593]
[1641173290230,0.229991,3800.1,3799.9,1.19361593]
[1641173290631,0.229991,3800.1,3799.7,2.00479]
[1641173293733,2.6162081,3800.3,3799.7,2.00479]
[1641173295035,1.14479195,3800.3,3799.7,2.00479]
[1641173295936,2.00479,3800.5,3799.7,3.79349558]
[1641173296136,2.132947,3800.5,3799.7,3.79349558]
[1641173297635,2.00479,3800.5,3799.7,3.79349558]
[1641173298037,1.47141615,3800.6,3799.7,3.79349558]
[1641173298937,1.47141615,3800.7,3799.8,1.78870558]
[1641173299339,1.47141615,3800.7,3800.2,2.00479]
[1641173299538,1.47141615,3800.7,3800.2,2.64809]
[1641173300540,1.47141615,3800.7,3800.4,1.19491317]
[1641173300939,0.229991,3800.6,3800.4,1.19491317]
[1641173302742,1.47141615,3800.7,3800.4,1.19491317]
[1641173302941,0.229991,3800.6,3800.4,1.19491317]
[1641173305247,1.47141615,3800.7,3800.4,1.19491317]
[1641173305745,0.229991,3800.6,3800.4,1.19491317]
[1641173305944,1.47141615,3800.6,3800.3,1.19491317]
[1641173307047,0.229991,3800.5,3800.3,1.19491317]
[1641173307245,0.229991,3800.5,3800.2,2.64809]
[1641173307246,1.70140715,3800.5,3800.2,2.64809]
[1641173307645,1.47141615,3800.5,3800.2,2.64809]
[1641173308047,1.47141615,3800.5,3800.4,0.8962251]
[1641173309647,1.70140715,3800.5,3800.4,0.8962251]
[1641173310248,1.47141615,3800.5,3800.4,0.8962251]
[1641173311147,1.70140715,3800.5,3800.4,0.8962251]
[1641173311350,2.26154412,3800.5,3800.4,0.8962251]
[1641173313751,2.26154412,3800.5,3800.3,0.17425004]
[1641173314250,2.03155312,3800.5,3800.3,0.17425004]
[1641173314450,0.229991,3800.4,3800.3,0.17425004]
[1641173315153,0.229991,3800.4,3800.2,3.19970317]
[1641173315351,1.47141615,3800.5,3800.2,2.00479]
[1641173315352,0.88577272,3800.5,3800.2,2.00479]
[1641173316652,0.88577272,3800.4,3800.2,2.00479]
[1641173317254,0.88577272,3800.5,3800.2,2.00479]
[1641173317656,0.229991,3800.4,3800.2,2.00479]
[1641173317853,0.88577272,3800.5,3800.2,2.00479]
[1641173318854,0.229991,3800.4,3800.2,2.00479]
[1641173319855,0.88577272,3800.5,3800.2,2.00479]
[1641173320256,0.229991,3800.4,3800.2,2.00479]
[1641173320454,0.88577272,3800.5,3800.2,2.00479]
[1641173320655,0.88577272,3800.4,3800.2,2.00479]
[1641173321756,0.229991,3800.3,3800.2,2.00479]
[1641173322056,0.88577272,3800.4,3800.2,2.00479]
[1641173322957,1.11576372,3800.4,3800.2,2.00479]
[1641173324461,1.11576372,3800.4,3800.1,0.89405794]
[1641173324861,1.11576372,3800.4,3800.2,2.00479]
[1641173325863,0.88577272,3800.4,3800.2,2.00479]
[1641173326064,0.88577272,3800.4,3800.2,2.58149]
[1641173326365,0.229991,3800.3,3800.2,2.58149]
[1641173326966,1.74116731,3800.3,3800.2,3.77640317]
[1641173327365,1.97115831,3800.3,3800.2,3.77640317]
[1641173327666,1.41105552,3800.3,3800.2,2.58149]
[1641173328668,1.18106452,3800.3,3800.2,2.58149]
[1641173328869,0.56010279,3800.3,3800.2,2.58149]
[1641173329569,1.18106452,3800.4,3800.2,2.58149]
[1641173330369,1.41105552,3800.4,3800.2,2.58149]
[1641173330572,1.41105552,3800.4,3800.3,1.19486739]
[1641173331172,1.18106452,3800.4,3800.3,1.19486739]
[1641173331370,1.74116731,3800.4,3800.3,1.19486739]
[1641173331869,1.97115831,3800.4,3800.3,1.19486739]
[1641173332472,1.41105552,3800.4,3800.2,2.58149]
[1641173333072,1.18106452,3800.4,3800.2,0.5767]
[1641173333273,1.18106452,3800.4,3800.0,2.58360404]
[1641173333471,0.56010279,3800.3,3800.0,2.58360404]
[1641173333771,0.56010279,3800.3,3800.2,2.00479]
[1641173334571,0.56010279,3800.3,3800.1,0.7997]
[1641173334572,1.18106452,3800.5,3800.1,0.7997]
[1641173335375,0.56010279,3800.7,3800.4,1.1948297]
[1641173335577,1.76569938,3801.1,3800.4,5.86349012]
[1641173335774,1.76569938,3801.1,3800.7,2.00479]
[1641173335974,1.76569938,3801.1,3800.8,0.0558]
[1641173336176,1.76569938,3801.1,3800.8,6.03816711]
[1641173336376,1.76569938,3801.2,3800.8,6.03816711]
[1641173338077,2.75161073,3801.6,3800.8,6.03816711]
[1641173338078,2.00479,3801.6,3800.8,6.03816711]
[1641173339279,2.00479,3801.6,3800.8,7.82687269]
[1641173340382,2.00479,3801.6,3800.8,6.03816711]
[1641173340883,2.132947,3801.6,3800.8,1.37022662]
[1641173341382,1.5,3801.4,3800.7,3.79349558]
[1641173341798,5.39864638,3801.6,3801.3,0.89599631]
[1641173342081,0.229991,3801.5,3801.3,0.89599631]
[1641173342882,0.229991,3801.5,3801.2,0.89599631]
[1641173343083,1.729991,3801.5,3801.2,0.89599631]
[1641173343288,0.229991,3801.5,3801.2,0.89599631]
[1641173343683,1.729991,3801.5,3801.2,0.89599631]
[1641173344083,0.229991,3801.5,3801.2,0.89599631]
[1641173344285,0.229991,3801.5,3800.7,2.00479]
[1641173344684,0.229991,3801.5,3800.8,0.0558]
[1641173345385,2.00479,3801.6,3800.8,0.0558]
[1641173345787,2.00479,3801.6,3800.8,0.97588167]
[1641173347489,2.00479,3801.6,3800.9,0.89599631]
[1641173350896,2.00479,3801.6,3801.0,0.89599631]
[1641173353197,2.00479,3801.6,3800.8,0.97588167]
[1641173353198,0.128157,3801.5,3800.9,0.89599631]
[1641173353796,1.5,3801.0,3800.9,0.89599631]
[1641173353997,2.531791,3801.0,3800.9,0.89599631]
[1641173354197,2.531791,3801.0,3800.7,0.89599631]
[1641173354596,1.2632352,3800.9,3800.7,0.89599631]
[1641173354998,0.229991,3800.8,3800.7,0.89599631]
[1641173355397,0.229991,3800.8,3800.5,0.0558]
[1641173355598,1.2632352,3800.9,3800.5,0.0558]
[1641173355796,1.2632352,3800.9,3800.5,0.781]
[1641173356000,1.2632352,3800.9,3800.5,0.7252]
[1641173356599,1.2632352,3800.9,3800.5,1.62119631]
[1641173357599,2.14824524,3800.9,3800.5,0.7252]
[1641173357799,2.14824524,3800.9,3800.4,2.00479]
[1641173357999,2.95294524,3800.9,3800.4,2.00479]
[1641173359301,2.0679352,3800.9,3800.4,2.00479]
[1641173359500,1.2632352,3800.9,3800.4,2.00479]
[1641173360902,1.2632352,3800.9,3800.5,1.12178971]
[1641173362004,1.2632352,3800.9,3800.4,2.00479]
[1641173363007,1.2632352,3800.9,3800.4,2.90078631]
[1641173364209,1.2632352,3800.9,3800.5,1.12178096]
[1641173365212,1.2632352,3800.9,3800.6,1.12178096]
[1641173366310,1.2632352,3800.9,3800.5,0.89599631]
[1641173367015,2.00479,3801.2,3800.6,1.5]
[1641173368112,2.00479,3801.2,3800.8,0.89599631]
[1641173369215,2.00479,3801.2,3800.9,1.12172735]
[1641173370416,0.229991,3801.1,3800.8,0.89599631]
[1641173370618,2.00479,3801.2,3800.8,0.89599631]
[1641173372121,0.7893439,3801.4,3800.9,1.12171932]
[1641173372418,0.7893439,3801.4,3800.9,0.89599631]
[1641173374521,0.88501004,3801.0,3800.8,2.00479]
[1641173377029,0.88501004,3801.0,3800.6,1.78870558]
[1641173377628,0.88501004,3801.0,3800.8,2.00479]
[1641173379032,0.88501004,3801.1,3800.8,2.00479]
[1641173380433,0.88501004,3801.1,3800.9,1.552343]
[1641173380634,0.5599162,3801.3,3801.0,1.5]
[1641173380838,2.20712422,3802.3,3801.5,0.37137517]
[1641173381035,1e-08,3802.3,3801.9,1.5]
[1641173381234,5.72858006,3803.7,3801.9,1.5]
[1641173381235,18.9872,3803.6,3802.0,0.122356]
[1641173381435,18.9872,3803.6,3802.1,1.31397411]
[1641173381635,20.99199,3803.6,3802.7,2.00479]
[1641173381836,0.229991,3802.8,3802.7,2.58549]
[1641173382036,4.17455141,3803.1,3802.7,2.58549]
[1641173382636,0.229991,3802.8,3802.7,2.58549]
[1641173383037,0.128157,3803.1,3802.7,2.58549]
[1641173383237,20.99199,3803.6,3802.7,2.58549]
[1641173383438,1.18010531,3803.5,3802.7,2.58549]
[1641173383639,2.00479,3803.2,3802.7,0.5807]
[1641173384439,2.00479,3803.2,3802.5,0.0558]
[1641173385240,2.00479,3803.2,3802.4,2.00479]
[1641173386444,1.5,3803.1,3802.4,2.00479]
[1641173386644,0.85314243,3803.0,3802.4,2.00479]
[1641173387746,1.5,3802.6,3801.9,2.00479]
[1641173387948,0.128157,3802.5,3801.9,2.00479]
[1641173389350,11.438157,3802.5,3801.9,2.00479]
[1641173389549,0.76711432,3802.4,3801.9,2.00479]
[1641173391653,1.95477887,3802.4,3802.0,1.19304358]
[1641173394462,1.5,3802.2,3802.0,1.19304358]
[1641173394659,11.539991,3802.1,3801.5,1.78956372]
[1641173394858,1.5,3801.6,3801.5,1.78956372]
[1641173395059,1.628157,3801.6,3801.5,1.78956372]
[1641173395463,2.45068712,3801.6,3801.5,1.78956372]
[1641173395661,2.68067812,3801.6,3801.5,1.78956372]
[1641173396361,2.68067812,3801.6,3800.8,3.79435372]
[1641173397364,1.18067812,3801.6,3800.8,3.79435372]
[1641173397562,1.18067812,3801.6,3800.8,2.00479]
[1641173397765,1.18067812,3801.6,3800.9,0.0558]
[1641173397962,0.95068712,3801.6,3800.9,0.0558]
[1641173400865,0.95068712,3801.6,3801.5,0.89491708]
[1641173401064,1.18067812,3801.6,3801.5,0.89491708]
[1641173401668,1.74059863,3801.6,3801.4,0.89491708]
[1641173402565,0.55992051,3801.5,3801.4,0.89491708]
[1641173404068,0.55992051,3801.5,3801.0,0.31850237]
[1641173404268,0.55992051,3801.5,3800.9,0.31850237]
[1641173404467,0.55992051,3801.5,3800.9,0.37430237]
[1641173405167,0.55992051,3801.5,3801.1,1.5]
[1641173405368,0.55992051,3801.5,3801.1,2.2063]
[1641173405671,1.18743243,3801.4,3801.3,1.19425331]
[1641173406570,1.18743243,3801.4,3801.2,1.31428669]
[1641173406771,1.18743243,3801.4,3801.3,0.31850237]
[1641173406971,2.00479,3801.7,3801.3,2.10806609]
[1641173407570,1.18743243,3802.0,3801.3,2.10806609]
[1641173407771,1.18743243,3802.1,3801.4,1.91191972]
[1641173407970,1.18743243,3802.1,3801.4,3.41191972]
[1641173408272,1.18743243,3802.1,3801.6,1.31414679]
[1641173408470,1.18743243,3802.1,3801.7,0.0558]
[1641173408872,0.55979661,3802.2,3801.7,0.0558]
[1641173410078,1.31558943,3802.3,3801.8,0.31850237]
[1641173410079,0.128157,3802.3,3801.8,0.31850237]
[1641173410681,0.55979661,3802.2,3801.8,0.31850237]
[1641173412984,0.55979661,3802.2,3801.8,0.37430237]
[1641173413186,0.55979661,3802.2,3801.8,0.0558]
[1641173413885,0.55979661,3802.2,3801.9,0.31850237]
[1641173414085,1.31558943,3802.3,3801.9,0.31850237]
[1641173414086,0.229991,3802.1,3801.9,0.31850237]
[1641173414287,1.87538604,3802.3,3801.9,0.31850237]
[1641173414886,0.55979661,3802.2,3801.9,0.31850237]
[1641173415085,0.229991,3802.1,3801.9,0.31850237]
[1641173416087,0.55979661,3802.2,3801.9,0.31850237]
[1641173416287,0.8937417,3802.0,3801.9,0.31850237]
[1641173416987,0.8937417,3802.0,3801.8,0.31850237]
[1641173418491,0.229991,3801.9,3801.7,0.31850237]
[1641173418695,0.8937417,3802.0,3801.7,0.31850237]
[1641173419495,0.229991,3801.9,3801.7,0.31850237]
[1641173419697,0.8937417,3802.0,3801.7,0.31850237]
[1641173421098,0.229991,3801.9,3801.7,0.31850237]
[1641173422797,1.06782537,3801.8,3801.7,0.31850237]
[1641173422998,2.79781637,3801.8,3801.3,1.44923008]
[1641173423196,1.29781637,3801.8,3799.9,7.02850297]
[1641173423397,1.29781637,3801.8,3800.1,1.5]
[1641173423800,1.29781637,3801.8,3800.3,1.31460287]
[1641173423999,0.8937417,3801.4,3800.5,4.84555239]
[1641173424197,0.229991,3801.3,3800.8,2.00479]
[1641173424397,0.358148,3801.3,3800.8,2.00479]
[1641173424698,2.362938,3801.3,3800.5,0.74643543]
[1641173424897,3.66836126,3801.3,3800.5,0.74643543]
[1641173425098,4.56210296,3801.3,3800.5,0.74643543]
[1641173425998,3.66836126,3801.3,3800.5,0.74643543]
[1641173426498,3.66836126,3801.3,3800.6,0.0558]
[1641173427000,3.66836126,3801.3,3800.5,0.74643543]
[1641173430201,1.66357126,3801.3,3800.5,0.74643543]
[1641173430902,3.66836126,3801.3,3800.5,0.74643543]
[1641173431104,3.66836126,3801.3,3800.6,2.23723245]
[1641173431706,3.66836126,3801.3,3800.9,1.78977391]
[1641173432504,3.66836126,3801.3,3800.8,1.78977391]
[1641173433306,3.66836126,3801.3,3800.9,1.78977391]
[1641173434010,3.66836126,3801.3,3800.7,1.78977391]
[1641173434906,3.66836126,3801.3,3800.8,1.78977391]
[1641173435107,3.66836126,3801.3,3800.8,2.49657391]
[1641173436709,3.43837026,3801.3,3800.8,0.7068]
[1641173437508,3.43837026,3801.3,3800.8,2.49657391]
[1641173438710,3.31021326,3801.3,3800.8,2.49657391]
[1641173439013,2.00479,3801.3,3800.9,1.31439725]
[1641173439209,0.8937417,3801.4,3800.8,5.6349844]
[1641173439210,0.8937417,3801.4,3801.2,5.93955788]
[1641173439410,0.8937417,3801.5,3801.3,0.122356]
[1641173439610,0.8937417,3801.5,3801.3,1.622356]
[1641173439811,0.8937417,3801.5,3801.3,0.122356]
[1641173440411,1.18743243,3801.8,3801.3,0.122356]
[1641173440612,0.8937417,3801.9,3801.3,1.91212991]
[1641173441011,0.8937417,3801.9,3801.7,2.00479]
[1641173441213,1.1237327,3801.9,3801.7,2.00479]
[1641173441413,0.229991,3801.9,3801.7,2.00479]
[1641173441616,0.8937417,3802.0,3801.7,2.00479]
[1641173442415,0.8937417,3801.9,3801.7,2.00479]
[1641173442615,0.8937417,3801.9,3801.8,1.19288748]
[1641173443417,0.8937417,3801.9,3801.8,1.45508882]
[1641173443818,1.1237327,3801.9,3801.8,1.45508882]
[1641173446120,0.8937417,3801.9,3801.8,1.45508882]
[1641173447222,1.1237327,3801.9,3801.8,1.45508882]
[1641173448421,0.8937417,3801.9,3801.8,1.45508882]
[1641173449624,0.8937417,3802.0,3801.8,0.26220134]
[1641173450530,0.229991,3801.9,3801.8,0.26220134]
[1641173451133,0.8937417,3802.0,3801.8,0.26220134]
[1641173452132,0.229991,3801.9,3801.8,0.26220134]
[1641173453133,0.8937417,3802.1,3801.8,0.26220134]
[1641173453632,0.128157,3802.3,3802.0,0.89275825]
[1641173453833,0.229991,3802.2,3802.0,0.89275825]
[1641173454733,0.128157,3802.3,3802.0,0.89275825]
[1641173455036,0.229991,3802.2,3802.0,0.89275825]
[1641173455235,0.128157,3802.3,3802.0,0.89275825]
[1641173456036,2.10635369,3802.5,3802.0,0.89275825]
[1641173456037,2.10635369,3802.5,3802.1,0.122356]
[1641173456237,23.0971,3802.9,3802.1,0.122356]
[1641173456436,2.00479,3803.0,3802.1,0.122356]
[1641173456738,2.00479,3803.0,3802.2,0.26220134]
[1641173456939,2.00479,3803.0,3802.3,0.0558]
[1641173457237,2.00479,3803.0,3802.3,2.06059]
[1641173458037,0.69245449,3802.9,3802.3,2.06059]
[1641173459038,0.69245449,3802.9,3802.4,0.26220134]
[1641173461943,22.7265,3803.3,3802.4,0.26220134]
[1641173463346,22.7265,3803.3,3802.7,2.00479]
[1641173463546,0.89124845,3803.5,3802.7,2.00479]
[1641173464446,0.89124845,3803.5,3802.8,0.26220134]
[1641173464845,0.128157,3803.4,3802.8,0.26220134]
[1641173469947,0.89124845,3803.5,3802.8,0.26220134]
[1641173470552,0.89124845,3803.5,3802.8,1.45216553]
[1641173471651,0.128157,3803.4,3802.8,1.45216553]
[1641173471853,2.319457,3803.4,3802.2,4.25927314]
[1641173472051,0.819457,3803.4,3802.2,4.25927314]
[1641173472255,0.819457,3803.4,3802.4,1.18998394]
[1641173473255,2.319457,3803.4,3802.2,2.46949923]
[1641173473453,2.00479,3802.6,3802.2,2.46949923]
[1641173474152,2.132947,3802.6,3802.2,2.46949923]
[1641173477155,2.00479,3802.6,3802.2,2.46949923]
[1641173479659,2.00479,3802.6,3801.9,1.31406735]
[1641173479862,1.5,3802.3,3801.7,1.78977391]
[1641173480060,15.53069,3802.6,3801.7,1.78977391]
[1641173480460,14.03069,3802.6,3801.7,1.78977391]